bitfinex-derivatives/quotes_ETHF0:USTF0_20250110
["timestamp","ask_amount","ask_price","bid_price","bid_amount"]
[1736471502262,0.31063,3219.4,3219.2,3.2078]
[1736471503163,3.4146449,3219.8,3219.2,3.2078]
[1736471503363,0.31062,3219.5,3219.2,3.2078]
[1736471503858,0.31064,3219.3,3219.2,3.2078]
[1736471504158,0.4492,3219.8,3219.2,3.2078]
[1736471504459,0.3106,3219.7,3219.2,3.51844]
[1736471504957,1.324,3219.9,3219.2,3.2078]
[1736471505260,0.31054,3220.4,3219.9,0.31058]
[1736471505457,1.63453,3220.5,3220.0,1.21696]
[1736471505657,0.31055,3220.3,3220.0,0.9064]
[1736471507763,0.31054,3220.4,3220.0,0.9064]
[1736471508563,0.31054,3220.3,3220.0,0.9064]
[1736471509165,0.31053,3220.4,3220.0,1.21697]
[1736471509364,0.31053,3220.4,3220.0,0.9064]
[1736471509863,2.9654449,3220.6,3220.0,0.9064]
[1736471510468,0.31056,3220.2,3220.0,0.9064]
[1736471511564,0.31057,3220.0,3219.9,3.2078]
[1736471512671,0.31057,3220.0,3219.0,2.44665347]
[1736471512672,0.31062,3219.5,3219.4,3.2078]
[1736471512964,3.2078,3220.3,3219.4,3.2078]
[1736471512965,0.31061,3219.7,3219.4,3.2078]
[1736471513465,0.4598,3219.9,3219.4,3.2078]
[1736471513867,0.31062,3219.5,3219.4,3.2078]
[1736471517764,0.31063,3219.4,3218.9,4.43557]
[1736471518568,0.31063,3219.4,3218.0,5.07108134]
[1736471518569,0.31075,3218.1,3218.0,4.82780545]
[1736471518767,3.27647113,3218.1,3218.0,4.82780545]
[1736471518964,6.48427113,3218.1,3218.0,2.24603942]
[1736471519159,0.31076,3218.0,3217.9,3.74768238]
[1736471519467,0.36350155,3218.0,3217.9,2.29459857]
[1736471519668,0.05274155,3218.0,3216.8,44.4832]
[1736471519869,0.31084,3217.2,3216.8,44.4832]
[1736471520167,2.96572113,3217.3,3216.8,44.0078]
[1736471520377,6.17352113,3217.3,3216.4,3.2078]
[1736471520560,3.2078,3217.3,3216.2,3.2078]
[1736471520866,3.2078,3217.3,3215.9,3.2078]
[1736471520867,3.27664113,3216.5,3215.9,3.2078]
[1736471521064,2.96572113,3216.5,3215.9,3.2078]
[1736471521260,2.96572113,3216.5,3215.9,3.51876]
[1736471521461,2.96572113,3216.5,3215.9,3.2078]
[1736471522572,2.96572113,3216.5,3215.9,3.51876]
[1736471522867,1.325,3216.6,3215.9,3.2078]
[1736471523069,0.31099,3215.7,3215.0,3.2078]
[1736471523268,2.96572113,3215.4,3215.0,3.2078]
[1736471523461,2.96572113,3215.4,3215.1,40.8]
[1736471524471,1.326,3215.6,3215.1,40.8]
[1736471525169,2.96572113,3215.8,3215.1,40.8]
[1736471525474,3.2078,3215.9,3215.5,3.2078]
[1736471526373,2.96572113,3215.8,3215.5,3.2078]
[1736471526770,4.29172113,3216.2,3215.5,3.5188]
[1736471526965,4.29172113,3216.2,3215.5,3.2078]
[1736471526966,2.96572113,3216.2,3215.5,3.2078]
[1736471527166,4.29172113,3216.2,3215.5,3.2078]
[1736471527366,4.60266113,3216.2,3215.5,3.2078]
[1736471527768,4.29172113,3216.2,3215.6,0.31099]
[1736471527973,4.29172113,3216.2,3215.5,3.2078]
[1736471528163,2.96572113,3216.2,3215.5,3.2078]
[1736471528368,2.96572113,3216.2,3215.5,3.5188]
[1736471528767,2.96572113,3216.2,3215.9,3.2078]
[1736471528974,1.7865,3216.5,3215.9,3.51876]
[1736471529477,2.96572113,3216.6,3216.3,3.2078]
[1736471529671,6.17352113,3217.0,3216.4,0.31092]
[1736471530179,2.96572113,3217.0,3216.7,3.2078]
[1736471531773,2.96572113,3217.0,3216.7,3.51869]
[1736471532375,3.2078,3217.5,3216.7,3.2078]
[1736471532681,3.51858,3217.9,3217.3,3.2078]
[1736471532877,3.2078,3217.9,3217.3,3.2078]
[1736471533077,6.17352113,3217.9,3217.3,3.2078]
[1736471533582,0.31081,3217.6,3217.3,3.2078]
[1736471533775,0.31081,3217.5,3217.3,3.2078]
[1736471535376,0.3108,3217.6,3217.3,3.2078]
[1736471535581,0.31079,3217.7,3217.3,3.2078]
[1736471535882,0.31081,3217.5,3217.3,3.2078]
[1736471536473,0.3108,3217.7,3217.3,3.2078]
[1736471537081,0.31079,3217.8,3217.3,3.51863]
[1736471537284,3.2078,3217.9,3217.5,0.31081]
[1736471537582,3.2078,3217.9,3217.3,3.2078]
[1736471537583,0.3108,3217.7,3217.3,3.2078]
[1736471538280,3.2078,3217.9,3217.3,3.2078]
[1736471538579,0.31078,3217.8,3217.3,3.2078]
[1736471538783,0.31078,3217.8,3217.3,3.51863]
[1736471538975,3.51858,3217.9,3217.3,3.51863]
[1736471539385,2.11165,3218.2,3217.6,0.31079]
[1736471539583,6.17352113,3218.3,3217.7,3.2078]
[1736471539785,1.326,3218.2,3217.8,0.31077]
[1736471539981,1.7881,3218.6,3217.7,3.2078]
[1736471540281,1.7881,3218.6,3218.1,3.2078]
[1736471540475,0.31072,3218.5,3218.1,3.2078]
[1736471541086,1.7881,3218.6,3218.1,3.2078]
[1736471541390,1.7881,3218.6,3218.1,3.51855]
[1736471541875,2.09881,3218.6,3218.1,3.2078]
[1736471542080,0.31072,3218.5,3218.1,3.2078]
[1736471542276,1.7881,3218.6,3218.1,3.2078]
[1736471542481,2.09881,3218.6,3218.1,3.2078]
[1736471543889,0.31071,3218.5,3218.1,3.2078]
[1736471544486,1.7881,3218.6,3218.1,3.2078]
[1736471544685,2.09881,3218.6,3218.1,3.2078]
[1736471545091,0.31071,3218.5,3218.1,3.2078]
[1736471546793,0.31074,3218.2,3218.1,3.2078]
[1736471547186,0.31079,3217.7,3217.5,0.4747]
[1736471547381,0.31076,3218.0,3217.5,0.4747]
[1736471547588,0.31076,3218.0,3217.5,0.78551]
[1736471547783,0.447,3218.1,3217.5,0.4747]
[1736471548286,0.75776,3218.1,3217.5,0.4747]
[1736471548486,0.31076,3218.0,3217.5,0.78551]
[1736471548684,3.2078,3218.4,3217.9,0.31076]
[1736471548987,3.2078,3218.8,3218.2,3.2078]
[1736471549194,3.2078,3218.8,3218.5,0.31071]
[1736471549688,0.4638,3219.2,3218.6,3.2078]
[1736471549891,1.337,3219.4,3219.0,3.2078]
[1736471550096,1.337,3219.4,3219.1,0.76625]
[1736471550482,3.2078,3219.5,3219.1,0.76625]
[1736471551087,3.2078,3219.9,3219.4,3.2078]
[1736471551290,0.77435,3220.2,3219.7,0.3106]
[1736471551490,0.4638,3220.2,3219.4,3.2078]
[1736471551684,0.31054,3220.3,3219.8,3.2078]
[1736471551890,0.31056,3220.2,3219.8,3.2078]
[1736471552092,0.31055,3220.3,3219.8,3.2078]
[1736471552492,0.31054,3220.4,3219.8,3.51838]
[1736471552687,3.2078,3220.5,3219.8,3.2078]
[1736471552895,0.31056,3220.1,3219.8,3.2078]
[1736471553396,0.31058,3220.0,3219.8,3.2078]
[1736471554096,3.2078,3220.5,3219.8,3.2078]
[1736471554598,0.31058,3219.9,3219.8,3.2078]
[1736471556590,0.31062,3219.5,3219.3,3.2078]
[1736471556899,2.96572113,3219.8,3219.1,0.4556]
[1736471557198,3.2078,3220.1,3219.3,3.2078]
[1736471557391,0.31061,3219.6,3219.3,3.2078]
[1736471557794,0.31063,3219.4,3219.1,0.4556]
[1736471558000,0.31062,3219.5,3219.1,0.4556]
[1736471558297,0.31063,3219.4,3219.1,0.4556]
[1736471558489,2.96572113,3219.8,3219.1,0.4556]
[1736471558690,3.27631113,3219.8,3219.3,3.2078]
[1736471558895,0.3106,3219.7,3219.3,3.2078]
[1736471560195,0.31062,3219.5,3219.1,0.4556]
[1736471561298,0.31063,3219.4,3219.1,0.4556]
[1736471563601,3.44342113,3219.8,3219.1,0.4556]
[1736471563902,0.31061,3219.6,3219.1,0.76625]
[1736471564292,3.44342113,3219.8,3219.1,0.4556]
[1736471564499,1.64759,3219.9,3219.3,3.51843]
[1736471564705,0.31059,3219.8,3219.3,3.51843]
[1736471564900,0.31059,3219.8,3219.4,40.8]
[1736471566307,1.337,3219.9,3219.3,3.2078]
[1736471566698,0.31061,3219.6,3219.3,3.2078]
[1736471567699,2.96572113,3219.8,3219.3,3.2078]
[1736471568002,0.31061,3219.6,3219.3,3.2078]
[1736471568401,3.27632113,3219.8,3219.3,3.51843]
[1736471568601,2.96572113,3219.8,3219.3,3.2078]
[1736471568805,0.3106,3219.7,3219.3,3.2078]
[1736471570405,3.7844573,3219.9,3219.5,0.31061]
[1736471570707,0.31057,3220.0,3219.5,0.31061]
[1736471570905,3.2078,3220.1,3219.3,3.2078]
[1736471571204,3.2078,3220.1,3219.2,0.4627]
[1736471571205,0.3105,3220.7,3220.2,0.31055]
[1736471571501,2.7579573,3220.8,3220.3,0.31054]
[1736471572209,2.4474573,3220.8,3220.3,0.4373]
[1736471572409,0.3105,3220.7,3220.3,0.4373]
[1736471572607,2.4474573,3220.8,3220.3,0.4373]
[1736471572908,0.3105,3220.7,3220.3,0.4373]
[1736471573109,3.2078,3220.9,3220.5,0.31051]
[1736471573304,3.2078,3220.9,3220.6,0.4466]
[1736471574409,0.3105,3220.8,3220.6,0.4466]
[1736471575009,7.0714726,3221.3,3220.6,0.4466]
[1736471575212,7.0714726,3221.3,3220.6,3.6544]
[1736471575605,7.0714726,3221.3,3220.6,3.2078]
[1736471575808,0.31052,3220.6,3220.1,3.51836]
[1736471576106,2.9635726,3220.9,3220.2,0.31054]
[1736471576107,0.31049,3220.8,3220.2,0.31054]
[1736471576301,6.1713726,3220.9,3220.1,3.2078]
[1736471576703,0.31053,3220.5,3220.1,3.2078]
[1736471576903,0.31052,3220.6,3220.1,3.51836]
[1736471577313,0.31052,3220.5,3220.1,3.2078]
[1736471577506,6.1713726,3220.9,3220.1,3.2078]
[1736471577706,0.31055,3220.2,3220.1,3.2078]
[1736471579009,0.31055,3220.3,3220.1,3.2078]
[1736471579314,6.42536158,3220.9,3220.1,3.2078]
[1736471579513,0.31055,3220.2,3220.1,3.2078]
[1736471580512,0.31055,3220.2,3219.9,0.4495]
[1736471581107,6.42536158,3220.9,3219.7,3.6445]
[1736471581108,0.31059,3219.8,3219.7,3.6445]
[1736471581311,0.31059,3219.8,3219.4,0.31062]
[1736471582006,0.31061,3219.7,3219.3,3.96673]
[1736471582615,2.9635726,3220.1,3219.3,3.6561]
[1736471583017,0.3106,3219.7,3219.3,3.96673]
[1736471583418,0.31059,3219.8,3219.4,0.31062]
[1736471583719,0.31056,3220.1,3219.7,3.51839]
[1736471584216,0.31056,3220.2,3219.8,0.31058]
[1736471584515,0.31056,3220.1,3219.7,3.51839]
[1736471584716,1.64154,3220.4,3219.7,3.2078]
[1736471585015,1.331,3220.4,3220.1,3.2078]
[1736471585212,0.31053,3220.5,3220.1,3.51836]
[1736471585419,0.76841,3220.7,3220.2,0.76385]
[1736471585714,0.4579,3220.7,3220.2,0.4533]
[1736471585912,1.331,3220.9,3220.6,3.2078]
[1736471586717,3.6804,3221.4,3220.9,0.31048]
[1736471586718,3.99084,3221.4,3220.9,0.31048]
[1736471586914,0.31045,3221.3,3221.0,0.4777]
[1736471587820,4.7261726,3221.7,3221.0,44.4855]
[1736471588121,4.2945726,3221.7,3221.0,44.4855]
[1736471588317,1.8036,3222.0,3221.0,44.4855]
[1736471588507,0.31041,3221.7,3221.1,0.31046]
[1736471588711,0.31042,3221.6,3221.1,0.31046]
[1736471589317,1.8036,3222.0,3221.0,44.4855]
[1736471589514,0.31041,3221.8,3221.4,3.2078]
[1736471589714,1.8036,3222.0,3221.4,3.2078]
[1736471590013,0.31039,3221.9,3221.4,3.51823]
[1736471590718,3.2078,3222.2,3221.4,3.2078]
[1736471590926,3.2078,3222.6,3222.1,0.31037]
[1736471591522,0.31031,3222.7,3222.3,3.2078]
[1736471591715,2.9635726,3222.5,3221.8,3.2078]
[1736471592021,3.2078,3222.6,3221.9,0.31039]
[1736471592219,3.51812,3222.6,3221.9,0.31039]
[1736471592421,3.2078,3222.6,3221.8,3.2078]
[1736471592616,2.9635726,3222.5,3221.8,3.2078]
[1736471592818,0.31036,3222.2,3221.8,3.2078]
[1736471593020,2.9635726,3222.5,3221.8,3.2078]
[1736471593222,0.31035,3222.3,3221.8,3.2078]
[1736471593425,2.9635726,3222.5,3221.8,3.2078]
[1736471593614,0.31036,3222.2,3221.8,3.2078]
[1736471594831,0.31034,3222.4,3221.8,3.2078]
[1736471595126,2.9635726,3222.5,3221.8,3.2078]
[1736471595426,0.31035,3222.3,3221.8,3.2078]
[1736471595723,2.9635726,3222.5,3221.8,3.2078]
[1736471595926,3.2078,3222.6,3221.8,3.2078]
[1736471596123,3.51813,3222.6,3221.9,0.31038]
[1736471596425,3.2078,3222.6,3221.9,0.31038]
[1736471596629,0.31033,3222.5,3221.9,0.31038]
[1736471596925,3.2078,3222.6,3221.8,3.2078]
[1736471597316,0.31036,3222.3,3221.8,3.2078]
[1736471597726,0.31034,3222.4,3221.8,3.51819]
[1736471597926,0.31035,3222.3,3221.8,3.2078]
[1736471599026,0.31035,3222.3,3221.8,3.5182]
[1736471599222,2.88318773,3222.8,3221.8,3.2078]
[1736471599429,2.88318773,3222.8,3222.2,3.2078]
[1736471599829,0.31033,3222.6,3222.2,3.2078]
[1736471600126,0.31035,3222.4,3222.2,3.2078]
[1736471600428,2.44358773,3222.5,3221.8,3.2078]
[1736471600625,0.31039,3221.9,3221.8,3.2078]
[1736471601333,0.4342,3222.1,3221.8,3.2078]
[1736471601516,0.4557,3222.4,3221.8,3.2078]
[1736471601724,0.4557,3222.4,3221.9,0.4776]
[1736471601928,2.44358773,3222.8,3222.1,0.31037]
[1736471602227,0.31031,3222.7,3222.1,0.31037]
[1736471602529,2.44358773,3222.8,3222.2,3.2078]
[1736471602831,0.31032,3222.6,3222.2,3.2078]
[1736471603326,0.8899,3222.9,3222.2,3.2078]
[1736471603327,3.85073026,3222.9,3222.2,3.2078]
[1736471603529,0.31035,3222.3,3222.2,3.2078]
[1736471603832,0.31035,3222.3,3221.9,0.4776]
[1736471604027,0.31033,3222.5,3221.9,0.78798]
[1736471604730,0.31034,3222.4,3221.9,0.78798]
[1736471604935,3.85073026,3222.9,3222.1,3.2078]
[1736471605229,5.18073026,3222.9,3222.1,3.2078]
[1736471605426,0.31031,3222.8,3222.3,0.31035]
[1736471606123,3.51809,3223.0,3222.6,0.31032]
[1736471606332,3.2078,3223.0,3222.8,0.3103]
[1736471606626,3.2078,3223.8,3222.9,6.16863026]
[1736471606830,3.2078,3224.2,3223.6,3.2078]
[1736471607129,3.2078,3224.2,3223.8,0.3102]
[1736471607130,3.51797,3224.2,3223.8,0.3102]
[1736471607329,3.2078,3224.2,3223.7,0.4558]
[1736471607525,12.17062949,3224.5,3224.0,3.2078]
[1736471607830,12.17062949,3224.5,3224.2,0.31016]
[1736471608030,12.17062949,3224.5,3224.1,0.31017]
[1736471608327,4.1135,3225.2,3224.0,3.2078]
[1736471608328,0.31016,3224.3,3224.0,3.2078]
[1736471608525,0.31015,3224.4,3224.0,3.2078]
[1736471608827,2.96083026,3225.0,3224.0,3.2078]
[1736471609331,0.3101,3224.9,3224.2,0.31016]
[1736471609625,0.31011,3224.8,3224.4,3.2078]
[1736471609928,4.1135,3225.2,3224.4,3.2078]
[1736471610129,3.6579,3225.2,3224.5,0.31014]
[1736471610321,0.31008,3225.1,3224.5,0.31013]
[1736471610928,0.31009,3225.0,3224.5,0.31013]
[1736471611226,0.31014,3224.6,3224.4,3.2078]
[1736471611424,0.31013,3224.6,3224.4,3.2078]
[1736471611625,0.31014,3224.5,3224.4,3.2078]
[1736471613135,0.31014,3224.6,3224.4,3.2078]
[1736471613826,2.96083026,3225.0,3224.4,3.2078]
[1736471614129,0.3101,3224.9,3224.4,3.2078]
[1736471614528,0.31009,3225.0,3224.4,3.51795]
[1736471614837,0.31009,3225.0,3224.4,3.2078]
[1736471615035,0.31009,3225.0,3224.4,3.51794]
[1736471615332,0.436,3225.1,3224.4,3.51794]
[1736471615519,0.31009,3225.0,3224.4,3.51794]
[1736471615723,3.6579,3225.2,3224.4,3.2078]
[1736471615920,3.6579,3225.2,3224.4,3.51795]
[1736471615921,0.31009,3225.0,3224.4,3.51795]
[1736471616538,0.31009,3225.0,3224.4,3.2078]
[1736471617127,0.31009,3225.0,3224.4,3.51794]
[1736471617326,3.2078,3225.2,3224.7,0.31011]
[1736471617527,3.2078,3225.2,3224.6,0.31013]
[1736471617831,3.2078,3225.2,3224.8,0.3101]
[1736471618534,3.51787,3225.2,3224.7,0.31011]
[1736471619434,3.2078,3225.2,3224.6,40.8]
[1736471619636,3.2078,3225.2,3224.6,41.11012]
[1736471619637,3.51788,3225.2,3224.6,41.11012]
[1736471619933,0.31008,3225.1,3224.6,41.11012]
[1736471620131,3.2078,3225.2,3224.6,40.8]
[1736471620335,0.31013,3224.6,3224.5,0.4567]
[1736471620536,0.3101,3224.9,3224.5,0.4567]
[1736471620832,3.2078,3225.2,3224.4,3.2078]
[1736471621135,0.31013,3224.6,3224.4,3.2078]
[1736471621435,3.2078,3225.2,3224.4,3.2078]
[1736471621631,0.31013,3224.6,3224.4,3.2078]
[1736471621940,0.3101,3225.0,3224.6,0.31012]
[1736471622130,3.2078,3225.2,3224.4,3.2078]
[1736471622324,0.4464,3225.6,3224.9,3.2078]
[1736471622530,0.31005,3225.4,3225.1,0.31008]
[1736471623835,0.31007,3225.3,3225.0,1.20369]
[1736471624033,3.2078,3225.7,3225.0,0.8936]
[1736471624433,3.2078,3225.7,3225.0,1.20368]
[1736471624631,0.31007,3225.3,3225.0,0.8936]
[1736471625132,3.2078,3225.7,3224.9,3.2078]
[1736471625133,0.31009,3225.0,3224.9,3.2078]
[1736471626634,3.2078,3225.7,3224.9,3.2078]
[1736471627133,0.31008,3225.2,3224.9,3.2078]
[1736471627332,0.31008,3225.2,3224.9,3.5179]
[1736471627531,3.2078,3225.7,3224.9,3.2078]
[1736471627732,0.31006,3225.4,3225.0,0.31009]
[1736471628233,0.31006,3225.4,3225.0,0.31008]
[1736471628436,0.31006,3225.4,3225.0,0.78208]
[1736471628633,0.31006,3225.4,3225.1,40.8]
[1736471628942,0.31006,3225.3,3225.1,40.8]
[1736471629129,2.96083026,3225.8,3225.1,40.8]
[1736471629332,0.31007,3225.2,3225.1,40.8]
[1736471629532,2.96083026,3225.8,3225.1,40.8]
[1736471629734,0.31006,3225.3,3225.1,40.8]
[1736471629935,0.31005,3225.4,3225.1,40.8]
[1736471630138,1.7761,3226.0,3225.3,3.2078]
[1736471630345,0.31004,3225.5,3225.3,3.2078]
[1736471630536,0.31004,3225.5,3225.3,44.0078]
[1736471630842,0.31005,3225.4,3225.3,44.0078]
[1736471631037,0.31005,3225.4,3225.3,40.8]
[1736471631637,0.31005,3225.4,3225.1,0.76098]
[1736471632445,2.8755817,3226.0,3225.0,0.472]
[1736471632446,0.31007,3225.2,3225.0,0.472]
[1736471633141,0.31003,3225.6,3224.9,44.0078]
[1736471633341,2.4384817,3225.7,3224.9,44.0078]
[1736471633540,0.31008,3225.2,3224.9,44.0078]
[1736471633741,0.31008,3225.1,3224.9,44.0078]
[1736471634139,2.4384817,3225.7,3224.9,44.0078]
[1736471634343,0.31009,3225.0,3224.9,3.2078]
[1736471635439,0.31011,3224.8,3224.4,3.2078]
[1736471635645,0.31012,3224.7,3224.4,3.51794]
[1736471636042,0.31013,3224.6,3224.5,40.8]
[1736471636643,0.31014,3224.5,3224.4,3.2078]
[1736471636843,1.32122955,3224.5,3224.4,3.2078]
[1736471637051,1.32122955,3224.5,3224.4,1.49855858]
[1736471637550,0.86123021,3224.5,3224.4,1.49855858]
[1736471638144,0.86123021,3224.5,3224.2,40.8]
[1736471638345,0.55109021,3224.4,3224.2,41.11016]
[1736471638642,0.55109021,3224.5,3224.2,41.11016]
[1736471638953,0.55109021,3224.4,3224.2,41.11016]
[1736471639150,0.31013,3224.6,3224.2,41.11016]
[1736471639449,0.31014,3224.5,3224.2,40.8]
[1736471639652,3.2078,3224.9,3224.2,40.8]
[1736471640043,0.31013,3224.6,3224.2,40.8]
[1736471640247,3.2078,3224.9,3224.7,0.31011]
[1736471640450,3.2078,3225.4,3224.6,3.2078]
[1736471640648,3.3556817,3225.7,3225.0,3.2078]
[1736471640846,0.457,3225.7,3225.1,0.4684]
[1736471641049,0.31004,3225.6,3225.1,1.22857]
[1736471641245,0.31004,3225.6,3225.1,0.9185]
[1736471641450,0.457,3225.7,3225.1,0.9185]
[1736471641650,0.76703,3225.7,3225.3,0.31006]
[1736471642944,0.31003,3225.6,3225.2,40.8]
[1736471643140,0.31004,3225.5,3225.2,41.11006]
[1736471644551,0.457,3225.7,3225.2,40.8]
[1736471644846,3.2078,3225.8,3225.3,0.31006]
[1736471645047,3.51781,3225.8,3225.5,0.31003]
[1736471645441,3.2078,3225.8,3225.2,40.8]
[1736471645645,3.2078,3225.8,3225.6,0.31003]
[1736471645848,0.31,3225.9,3225.6,0.31003]
[1736471646944,0.55109021,3226.1,3225.4,3.2078]
[1736471647150,3.75889021,3226.2,3225.4,3.2078]
[1736471647453,1.01108955,3226.5,3225.9,3.2078]
[1736471647757,1.01108955,3226.5,3226.4,0.30995]
[1736471647758,0.45999934,3226.5,3226.4,0.30995]
[1736471648146,12.17062949,3226.6,3226.5,0.30994]
[1736471648451,12.17062949,3226.6,3226.4,0.30995]
[1736471648647,0.30992,3226.8,3226.4,0.30995]
[1736471649046,0.30992,3226.8,3226.5,40.8]
[1736471650753,0.30992,3226.8,3226.5,41.10994]
[1736471651151,0.30993,3226.6,3226.3,3.2078]
[1736471651752,0.30993,3226.7,3226.3,3.51776]
[1736471651951,3.2078,3227.0,3226.4,0.30995]
[1736471652652,0.30992,3226.8,3226.4,0.30995]
[1736471653357,0.30993,3226.7,3226.4,0.30995]
[1736471653561,3.2078,3227.0,3226.4,0.30995]
[1736471653855,0.30992,3226.8,3226.4,0.30995]
[1736471654157,3.2078,3227.0,3226.4,0.30995]
[1736471654356,3.2078,3227.0,3226.3,3.2078]
[1736471654552,6.16265537,3227.0,3226.0,0.8952]
[1736471654750,0.4702,3226.9,3226.0,0.8952]
[1736471654954,0.30996,3226.4,3226.1,0.30997]
[1736471655464,0.30992,3226.8,3226.1,0.30997]
[1736471655762,0.30995,3226.5,3226.1,0.30997]
[1736471655955,0.30992,3226.8,3226.4,0.30995]
[1736471656859,0.30993,3226.7,3226.4,0.30995]
[1736471657160,3.2078,3227.0,3226.0,0.8952]
[1736471657660,0.30993,3226.7,3226.4,0.30995]
[1736471657860,3.2078,3227.0,3226.3,3.2078]
[1736471658062,3.2078,3227.0,3226.6,0.30993]
[1736471658063,0.30991,3226.9,3226.6,0.30993]
[1736471658258,3.2078,3227.0,3226.3,3.2078]
[1736471658453,0.30992,3226.8,3226.3,3.2078]
[1736471658760,0.30992,3226.8,3226.5,0.30994]
[1736471660359,15.37842949,3227.2,3226.6,0.30993]
[1736471660958,15.37842949,3227.2,3226.4,3.2078]
[1736471661155,0.30994,3226.5,3226.2,0.30997]
[1736471661359,0.30995,3226.4,3226.1,0.30998]
[1736471661753,0.30997,3226.2,3226.0,0.8952]
[1736471662355,3.2078,3226.8,3226.0,0.8952]
[1736471662753,3.2078,3226.8,3226.1,0.30997]
[1736471662957,0.30996,3226.4,3226.1,0.30997]
[1736471663458,3.2078,3226.8,3226.0,0.8952]
[1736471663663,0.30997,3226.3,3226.0,1.20519]
[1736471664763,0.30997,3226.3,3226.1,0.30998]
[1736471665360,0.30997,3226.3,3225.6,2.43702224]
[1736471665361,0.77499,3226.0,3224.6,4.8150285]
[1736471665564,4.64306591,3226.2,3224.6,4.8150285]
[1736471665565,3.2078,3225.5,3224.6,4.8150285]
[1736471665862,3.2078,3225.5,3224.7,40.8]
[1736471666166,3.2078,3225.5,3224.7,41.11011]
[1736471666167,0.31007,3225.2,3224.7,41.11011]
[1736471666555,3.2078,3225.5,3224.7,41.11011]
[1736471666755,0.31009,3225.1,3224.7,41.11012]
[1736471667161,3.2078,3225.5,3224.7,40.8]
[1736471667162,0.31009,3225.0,3224.7,40.8]
[1736471667361,0.31009,3225.1,3224.7,40.8]
[1736471668768,0.31009,3225.1,3224.7,41.11012]
[1736471670063,3.2078,3225.5,3224.7,41.11012]
[1736471670261,0.31009,3225.0,3224.7,41.11012]
[1736471670962,3.2078,3225.9,3224.9,2.43702224]
[1736471671169,0.31003,3225.7,3225.3,0.31005]
[1736471671363,3.2078,3225.9,3225.4,0.4572]
[1736471671666,0.30999,3226.0,3225.7,3.2078]
[1736471671866,0.30999,3226.1,3225.7,3.51781]
[1736471672055,3.2078,3226.4,3225.8,0.4746]
[1736471672256,0.31,3225.9,3225.8,0.4746]
[1736471672464,3.2078,3226.4,3225.8,0.4746]
[1736471672766,0.31,3225.9,3225.8,0.4746]
[1736471672967,3.2078,3226.4,3225.8,0.4746]
[1736471673172,0.31,3226.0,3225.8,0.4746]
[1736471673870,3.2078,3226.4,3225.8,0.4746]
[1736471674072,3.51776,3226.4,3226.0,0.30999]
[1736471674965,0.30996,3226.4,3226.1,3.2078]
[1736471675174,0.30996,3226.4,3226.1,3.51778]
[1736471675359,0.9088,3226.7,3226.1,3.2078]
[1736471675565,0.30997,3226.3,3226.1,3.2078]
[1736471676667,0.30996,3226.3,3226.0,0.30999]
[1736471677064,0.30996,3226.3,3225.8,0.4746]
[1736471677366,0.31,3226.0,3225.8,0.4746]
[1736471678167,0.31,3225.9,3225.8,0.4746]
[1736471678366,0.31,3226.0,3225.8,0.4746]
[1736471680165,5.64482224,3226.5,3225.8,0.4746]
[1736471680365,0.30998,3226.2,3225.8,0.4746]
[1736471680675,5.64482224,3226.5,3225.8,0.7846]
[1736471680866,0.30998,3226.2,3225.8,0.7846]
[1736471681565,0.30998,3226.2,3225.9,0.31]
[1736471682059,0.30997,3226.3,3226.0,0.30999]
[1736471682267,0.30996,3226.4,3226.1,0.30998]
[1736471682464,3.2078,3226.5,3225.9,0.31]
[1736471682465,3.51775,3226.5,3225.9,0.31]
[1736471682664,3.51775,3226.5,3226.2,0.30997]
[1736471682972,3.51775,3226.5,3225.8,0.4746]
[1736471682973,3.2078,3226.5,3225.8,0.4746]
[1736471683171,0.30996,3226.3,3226.0,0.30999]
[1736471683874,0.30996,3226.4,3225.8,3.3926]
[1736471684066,3.51774,3226.5,3226.2,0.30997]
[1736471684674,0.30994,3226.5,3226.2,0.30997]
[1736471685867,0.30993,3226.6,3226.0,0.30998]
[1736471686080,0.30997,3226.3,3226.0,0.30999]
[1736471686572,0.30996,3226.4,3226.1,0.30998]
[1736471687067,2.43702224,3226.5,3226.1,0.30998]
[1736471687273,0.30999,3226.0,3225.8,0.31001]
[1736471687461,3.2078,3226.4,3225.7,3.2078]
[1736471687667,3.51776,3226.4,3226.1,0.30998]
[1736471688573,3.51776,3226.4,3225.7,44.0078]
[1736471688872,3.2078,3226.4,3226.3,0.30996]
[1736471690071,0.76643,3226.7,3226.5,0.30994]
[1736471690467,0.30992,3226.8,3226.5,0.30994]
[1736471690773,0.30992,3226.8,3226.2,0.915]
[1736471690774,0.30992,3226.8,3226.6,0.30993]
[1736471690969,3.51771,3226.9,3226.6,0.30993]
[1736471691869,0.30992,3226.8,3226.6,0.30993]
[1736471692069,0.30992,3226.8,3226.5,0.30994]
[1736471692769,3.2078,3226.9,3226.2,0.915]
[1736471693072,3.2078,3226.9,3226.8,0.30992]
[1736471696271,3.2078,3226.9,3226.7,0.30992]
[1736471696872,3.2078,3226.9,3226.2,3.35202224]
[1736471697173,0.30993,3226.7,3226.5,0.30994]
[1736471700673,3.2078,3226.9,3226.3,40.8]
[1736471700872,0.30995,3226.5,3226.3,41.10996]
[1736471701476,0.30995,3226.4,3226.3,40.8]
[1736471702074,3.2078,3226.4,3225.7,4.1505]
[1736471702480,3.2078,3226.4,3226.3,0.30996]
[1736471702974,4.4565,3227.0,3226.8,0.30991]
[1736471703182,3.678,3227.4,3226.5,2.43702224]